[Event "*** MasterClass Titled Tuesday Blitz"]
[Site "Chess.com"]
[Date "2017.11.07"]
[Round "1"]
[White "calemcc"]
[Black "saikrishnaReturns"]
[Result "1-0"]
[WhiteElo "2234"]
[BlackElo "2491"]
[TimeControl "180+2"]
[EndTime "14:08:55 PST"]
[Termination "calemcc won by resignation"]

1. d4 {[%clk 0:03:01.9]} 1... Nf6 {[%clk 0:03:00.3]} 2. c4 {[%clk 0:03:02.7]}
2... g6 {[%clk 0:03:01.6]} 3. f3 {[%clk 0:03:01.3]} 3... Bg7 {[%clk 0:03:00.4]}
4. e4 {[%clk 0:03:01.9]} 4... d6 {[%clk 0:03:01.7]} 5. Nc3 {[%clk 0:03:03.5]}
5... O-O {[%clk 0:03:02.5]} 6. Be3 {[%clk 0:03:05.1]} 6... Nc6 {[%clk
0:03:03.7]} 7. Nge2 {[%clk 0:03:05.7]} 7... a6 {[%clk 0:03:04.7]} 8. Qd2 {[%clk
0:03:07.1]} 8... Rb8 {[%clk 0:03:05.9]} 9. h4 {[%clk 0:03:06.9]} 9... h5 {[%clk
0:03:06]} 10. O-O-O {[%clk 0:03:05.7]} 10... b5 {[%clk 0:03:06.1]} 11. Bh6
{[%clk 0:03:03.9]} 11... e5 {[%clk 0:02:48.6]} 12. g4 {[%clk 0:02:58.7]} 12...
hxg4 {[%clk 0:02:41.3]} 13. h5 {[%clk 0:02:58.5]} 13... gxf3 {[%clk 0:02:39.9]}
14. Ng3 {[%clk 0:02:58.9]} 14... Ng4 {[%clk 0:02:32.7]} 15. Bxg7 {[%clk
0:02:57.5]} 15... Kxg7 {[%clk 0:02:34]} 16. Bh3 {[%clk 0:02:46.8]} 16... Qf6
{[%clk 0:02:18.6]} 17. Nd5 {[%clk 0:02:35.4]} 17... Qh4 {[%clk 0:01:43.7]} 18.
Bxg4 {[%clk 0:02:08.9]} 18... Qxg4 {[%clk 0:01:43.2]} 19. hxg6 {[%clk
0:02:05.6]} 19... fxg6 {[%clk 0:01:38.9]} 20. Qh6+ {[%clk 0:02:02.6]} 20... Kf7
{[%clk 0:01:40.1]} 21. Qh7+ {[%clk 0:02:01.3]} 21... Ke8 {[%clk 0:01:41.3]} 22.
Qg7 {[%clk 0:01:15.1]} 22... Qxg3 {[%clk 0:01:39.6]} 23. Rdg1 {[%clk 0:01:03.5]}
23... Qxg1+ {[%clk 0:01:15.5]} 24. Rxg1 {[%clk 0:01:03.7]} 24... Be6 {[%clk
0:01:16.6]} 25. Nxc7+ {[%clk 0:01:02.3]} 25... Kd8 {[%clk 0:01:17.6]} 26. Nxe6+
{[%clk 0:01:03.4]} 26... Ke8 {[%clk 0:01:18.9]} 27. Qxf8+ {[%clk 0:01:00.9]}
27... Kd7 {[%clk 0:01:20.1]} 28. Qf7+ {[%clk 0:01:01.7]} 28... Ne7 {[%clk
0:01:20]} 29. Nf8+ {[%clk 0:01:01.4]} 1-0

[Event "*** MasterClass Titled Tuesday Blitz"]
[Site "Chess.com"]
[Date "2017.11.07"]
[Round "1"]
[White "thegreendog"]
[Black "Msb2"]
[Result "0-1"]
[WhiteElo "2369"]
[BlackElo "2643"]
[TimeControl "180+2"]
[EndTime "14:08:59 PST"]
[Termination "Msb2 won by resignation"]

1. d4 {[%clk 0:03:01.9]} 1... Nf6 {[%clk 0:02:58.7]} 2. c4 {[%clk 0:03:02.7]}
2... e6 {[%clk 0:02:59.9]} 3. Nf3 {[%clk 0:03:03.4]} 3... d5 {[%clk 0:02:54.3]}
4. g3 {[%clk 0:03:00.4]} 4... Bb4+ {[%clk 0:02:53.2]} 5. Bd2 {[%clk 0:03:01.4]}
5... Be7 {[%clk 0:02:53.7]} 6. Bg2 {[%clk 0:03:02.4]} 6... Nbd7 {[%clk 0:02:54]}
7. O-O {[%clk 0:03:03.3]} 7... c6 {[%clk 0:02:54.8]} 8. Qc2 {[%clk 0:03:04.6]}
8... O-O {[%clk 0:02:55.2]} 9. b3 {[%clk 0:03:04.6]} 9... b6 {[%clk 0:02:55.5]}
10. Nc3 {[%clk 0:03:05.6]} 10... Ba6 {[%clk 0:02:56.2]} 11. cxd5 {[%clk
0:02:56.7]} 11... cxd5 {[%clk 0:02:55.5]} 12. Rfe1 {[%clk 0:02:58]} 12... Rc8
{[%clk 0:02:56.2]} 13. Qb2 {[%clk 0:02:57]} 13... Bd6 {[%clk 0:02:51.7]} 14. Bf4
{[%clk 0:02:54.2]} 14... Bxf4 {[%clk 0:02:48.1]} 15. gxf4 {[%clk 0:02:56.1]}
15... Qc7 {[%clk 0:02:49.5]} 16. Qa3 {[%clk 0:02:46.7]} 16... Bb7 {[%clk
0:02:27.3]} 17. Nb5 {[%clk 0:02:41.5]} 17... Qxf4 {[%clk 0:02:27.4]} 18. Qxa7
{[%clk 0:02:38.5]} 18... Bc6 {[%clk 0:02:27.2]} 19. Qa4 {[%clk 0:02:34.5]} 19...
Ne4 {[%clk 0:02:18.4]} 20. Qb4 {[%clk 0:02:28.2]} 20... Bxb5 {[%clk 0:01:45.7]}
21. Qxb5 {[%clk 0:02:30.1]} 21... Qd6 {[%clk 0:01:47.3]} 22. Rac1 {[%clk
0:02:18.2]} 22... Ndf6 {[%clk 0:01:43.4]} 23. Ne5 {[%clk 0:02:18]} 23... Nc3
{[%clk 0:01:34]} 24. Qa6 {[%clk 0:01:57.6]} 24... Ra8 {[%clk 0:01:31.7]} 25. Qb7
{[%clk 0:01:46.4]} 25... Nxa2 {[%clk 0:01:22.9]} 26. Rc6 {[%clk 0:00:55]} 26...
Qb4 {[%clk 0:01:22.9]} 27. Ra1 {[%clk 0:00:52.2]} 27... Qxd4 {[%clk 0:01:21.4]}
0-1

[Event "*** MasterClass Titled Tuesday Blitz"]
[Site "Chess.com"]
[Date "2017.11.07"]
[Round "1"]
[White "chess2matters"]
[Black "VladDobrov"]
[Result "0-1"]
[WhiteElo "2396"]
[BlackElo "2669"]
[TimeControl "180+2"]
[EndTime "14:09:08 PST"]
[Termination "VladDobrov won by resignation"]

1. d4 {[%clk 0:03:01.9]} 1... Nf6 {[%clk 0:02:55.9]} 2. c4 {[%clk 0:03:02.4]}
2... e6 {[%clk 0:02:56.9]} 3. Nc3 {[%clk 0:03:02]} 3... Bb4 {[%clk 0:02:57.3]}
4. Qc2 {[%clk 0:03:02.7]} 4... d5 {[%clk 0:02:57.4]} 5. cxd5 {[%clk 0:03:02.9]}
5... exd5 {[%clk 0:02:59.2]} 6. Bg5 {[%clk 0:03:01.2]} 6... h6 {[%clk 0:03:00]}
7. Bxf6 {[%clk 0:03:01.3]} 7... Qxf6 {[%clk 0:03:01.2]} 8. e3 {[%clk 0:03:02.9]}
8... c6 {[%clk 0:03:00.9]} 9. Bd3 {[%clk 0:03:01.1]} 9... O-O {[%clk 0:03:01.2]}
10. h3 {[%clk 0:02:59]} 10... Re8 {[%clk 0:03:01.8]} 11. Nf3 {[%clk 0:02:59.2]}
11... Bd6 {[%clk 0:03:00.9]} 12. O-O-O {[%clk 0:02:54.2]} 12... Na6 {[%clk
0:02:48.7]} 13. Bxa6 {[%clk 0:02:47.4]} 13... bxa6 {[%clk 0:02:48.7]} 14. Qa4
{[%clk 0:02:48.2]} 14... Bf5 {[%clk 0:02:22.5]} 15. Qxa6 {[%clk 0:02:34.6]}
15... Rab8 {[%clk 0:02:17.1]} 16. Rd2 {[%clk 0:02:29.9]} 16... Rb6 {[%clk
0:02:04.4]} 17. Qxa7 {[%clk 0:02:06.1]} 17... Reb8 {[%clk 0:02:04]} 18. Ne5
{[%clk 0:01:39.7]} 18... Bxe5 {[%clk 0:01:52.6]} 19. dxe5 {[%clk 0:01:39.6]}
19... Qxe5 {[%clk 0:01:54.5]} 20. Qa3 {[%clk 0:01:34.9]} 20... Rb4 {[%clk
0:01:25]} 21. Rhd1 {[%clk 0:01:29]} 21... Be6 {[%clk 0:01:10.8]} 22. Rd4 {[%clk
0:01:21.1]} 22... c5 {[%clk 0:01:11.6]} 23. R4d2 {[%clk 0:01:12.4]} 23... d4
{[%clk 0:01:11.3]} 24. exd4 {[%clk 0:01:12]} 24... cxd4 {[%clk 0:01:13.2]} 25.
Ne2 {[%clk 0:01:10.5]} 25... Bf5 {[%clk 0:01:13.3]} 26. Nxd4 {[%clk 0:00:55.6]}
26... Rxd4 {[%clk 0:01:12.8]} 27. Rxd4 {[%clk 0:00:52.8]} 27... Rc8+ {[%clk
0:01:13.4]} 0-1

[Event "*** MasterClass Titled Tuesday Blitz"]
[Site "Chess.com"]
[Date "2017.11.07"]
[Round "1"]
[White "northridgehawk"]
[Black "jncool68"]
[Result "0-1"]
[WhiteElo "1948"]
[BlackElo "2457"]
[TimeControl "180+2"]
[EndTime "14:09:19 PST"]
[Termination "jncool68 won by resignation"]

1. e4 {[%clk 0:03:01.6]} 1... c5 {[%clk 0:02:59.5]} 2. Nf3 {[%clk 0:03:00.9]}
2... d6 {[%clk 0:03:00.3]} 3. d4 {[%clk 0:02:48.3]} 3... cxd4 {[%clk 0:03:02.2]}
4. Nxd4 {[%clk 0:02:50.2]} 4... Nf6 {[%clk 0:03:02.3]} 5. Nc3 {[%clk 0:02:51.6]}
5... a6 {[%clk 0:03:01.5]} 6. h3 {[%clk 0:02:52.8]} 6... e6 {[%clk 0:03:01.1]}
7. g4 {[%clk 0:02:53]} 7... h6 {[%clk 0:03:02.4]} 8. Be3 {[%clk 0:02:54.2]} 8...
b5 {[%clk 0:03:01.8]} 9. Bg2 {[%clk 0:02:55.4]} 9... Bb7 {[%clk 0:03:00.9]} 10.
Qe2 {[%clk 0:02:53.7]} 10... b4 {[%clk 0:03:01]} 11. Nd5 {[%clk 0:02:52.5]}
11... exd5 {[%clk 0:02:59]} 12. exd5 {[%clk 0:02:54.4]} 12... Be7 {[%clk
0:02:59.6]} 13. Nf5 {[%clk 0:02:51.3]} 13... Kf8 {[%clk 0:02:55.9]} 14. Bb6
{[%clk 0:02:36.6]} 14... Qd7 {[%clk 0:02:50.6]} 15. O-O-O {[%clk 0:02:34.9]}
15... g6 {[%clk 0:02:48.2]} 16. Nxh6 {[%clk 0:02:22.7]} 16... Rxh6 {[%clk
0:02:47.2]} 17. g5 {[%clk 0:02:23.6]} 17... Rh7 {[%clk 0:02:45.1]} 18. gxf6
{[%clk 0:02:24.5]} 18... Bxf6 {[%clk 0:02:46.4]} 19. Rhe1 {[%clk 0:02:23.1]}
19... Kg7 {[%clk 0:02:42.7]} 20. Qf3 {[%clk 0:02:17.2]} 20... Qf5 {[%clk
0:02:36.4]} 21. Qxf5 {[%clk 0:01:42.8]} 21... gxf5 {[%clk 0:02:36]} 22. Bc7
{[%clk 0:01:44.3]} 22... Be5 {[%clk 0:02:18.8]} 23. Kb1 {[%clk 0:01:32.5]} 23...
Nd7 {[%clk 0:02:17.3]} 24. f4 {[%clk 0:01:32.4]} 24... Bxf4 {[%clk 0:02:14.7]}
25. Rf1 {[%clk 0:01:34]} 25... Be5 {[%clk 0:02:15]} 26. Rxf5 {[%clk 0:01:34.8]}
26... Rc8 {[%clk 0:02:14.4]} 27. Ba5 {[%clk 0:01:33.6]} 27... Rh6 {[%clk
0:02:09.4]} 28. Bxb4 {[%clk 0:01:29.9]} 28... Rf6 {[%clk 0:02:09.9]} 29. Rg5+
{[%clk 0:01:30.1]} 29... Rg6 {[%clk 0:02:10.6]} 30. Rxg6+ {[%clk 0:01:23.6]}
30... fxg6 {[%clk 0:02:10.2]} 31. Bf3 {[%clk 0:01:23.2]} 31... Nf6 {[%clk
0:02:04.2]} 32. b3 {[%clk 0:01:17.8]} 32... Rh8 {[%clk 0:01:52.7]} 33. Bg2
{[%clk 0:01:18.2]} 33... Rh5 {[%clk 0:01:50.9]} 34. Rd3 {[%clk 0:01:02.9]} 34...
Rg5 {[%clk 0:01:48.9]} 35. Rd2 {[%clk 0:00:53.9]} 35... Bxd5 {[%clk 0:01:45]}
36. Bxd5 {[%clk 0:00:54.3]} 36... Rg1+ {[%clk 0:01:44.8]} 0-1

[Event "*** MasterClass Titled Tuesday Blitz"]
[Site "Chess.com"]
[Date "2017.11.07"]
[Round "1"]
[White "maciek_92"]
[Black "Jadeit90"]
[Result "1-0"]
[WhiteElo "2566"]
[BlackElo "2294"]
[TimeControl "180+2"]
[EndTime "14:09:22 PST"]
[Termination "maciek_92 won by resignation"]

1. c4 {[%clk 0:03:01.9]} 1... g6 {[%clk 0:03:00.6]} 2. Nc3 {[%clk 0:03:02.7]}
2... Bg7 {[%clk 0:03:02.2]} 3. g3 {[%clk 0:03:04.3]} 3... Nf6 {[%clk 0:03:03.7]}
4. Bg2 {[%clk 0:03:05.8]} 4... O-O {[%clk 0:03:05.6]} 5. d4 {[%clk 0:03:07.1]}
5... c5 {[%clk 0:03:07.5]} 6. e3 {[%clk 0:03:07.8]} 6... cxd4 {[%clk 0:03:09]}
7. exd4 {[%clk 0:03:09]} 7... d6 {[%clk 0:03:10.6]} 8. Nge2 {[%clk 0:03:10.4]}
8... Nc6 {[%clk 0:03:12.1]} 9. O-O {[%clk 0:03:10.3]} 9... a6 {[%clk 0:03:06.9]}
10. h3 {[%clk 0:03:05.4]} 10... Rb8 {[%clk 0:03:07.7]} 11. b3 {[%clk 0:03:02.5]}
11... Bd7 {[%clk 0:03:08.4]} 12. Be3 {[%clk 0:02:50.1]} 12... b5 {[%clk
0:03:05.8]} 13. c5 {[%clk 0:02:42.9]} 13... dxc5 {[%clk 0:03:06.1]} 14. dxc5
{[%clk 0:02:43.7]} 14... Qc8 {[%clk 0:03:07.6]} 15. Kh2 {[%clk 0:02:43.1]} 15...
Rd8 {[%clk 0:03:08.6]} 16. Qc1 {[%clk 0:02:38.6]} 16... b4 {[%clk 0:03:07.4]}
17. Na4 {[%clk 0:02:39.1]} 17... Qc7 {[%clk 0:03:02.6]} 18. Nb6 {[%clk
0:02:33.8]} 18... Bf5 {[%clk 0:02:57]} 19. Bf4 {[%clk 0:02:22.2]} 19... e5
{[%clk 0:02:57.6]} 20. Bg5 {[%clk 0:02:22.1]} 20... h6 {[%clk 0:02:58.6]} 21.
Bxf6 {[%clk 0:02:19.9]} 21... Bxf6 {[%clk 0:02:59.5]} 22. Nd5 {[%clk 0:02:20.7]}
22... Rxd5 {[%clk 0:02:56.6]} 23. Bxd5 {[%clk 0:02:22.6]} 23... e4 {[%clk
0:02:54.1]} 24. Rb1 {[%clk 0:02:12.4]} 24... e3 {[%clk 0:02:54.3]} 25. Qxe3
{[%clk 0:02:12.6]} 25... Bxb1 {[%clk 0:02:52.5]} 26. Rxb1 {[%clk 0:02:14.5]}
26... Qd7 {[%clk 0:02:09]} 27. Qe4 {[%clk 0:02:08]} 27... Re8 {[%clk 0:01:31.6]}
28. Qxg6+ {[%clk 0:02:08.1]} 28... Bg7 {[%clk 0:01:32.9]} 29. Qxc6 {[%clk
0:02:03.4]} 29... Qxc6 {[%clk 0:01:33.7]} 30. Bxc6 {[%clk 0:02:05.3]} 30... Rxe2
{[%clk 0:01:35.4]} 31. Bg2 {[%clk 0:02:00]} 31... Rxf2 {[%clk 0:01:26.3]} 32. c6
{[%clk 0:01:58.9]} 32... Be5 {[%clk 0:01:27.3]} 33. Re1 {[%clk 0:01:57.8]} 33...
f6 {[%clk 0:01:22.6]} 34. Re4 {[%clk 0:01:58.4]} 34... a5 {[%clk 0:01:11.2]} 35.
Rc4 {[%clk 0:01:57.6]} 35... Bc7 {[%clk 0:01:12]} 36. Rd4 {[%clk 0:01:56.4]}
36... Rc2 {[%clk 0:00:58.4]} 37. Rd7 {[%clk 0:01:56.5]} 37... Bb6 {[%clk
0:00:57.7]} 38. Rb7 {[%clk 0:01:54.7]} 1-0

[Event "*** MasterClass Titled Tuesday Blitz"]
[Site "Chess.com"]
[Date "2017.11.07"]
[Round "1"]
[White "Swarnapuri"]
[Black "Shivagami"]
[Result "1-0"]
[WhiteElo "2461"]
[BlackElo "1975"]
[TimeControl "180+2"]
[EndTime "14:09:40 PST"]
[Termination "Swarnapuri won by resignation"]

1. d4 {[%clk 0:03:01.9]} 1... d5 {[%clk 0:02:57.7]} 2. Bf4 {[%clk 0:03:03.2]}
2... Nf6 {[%clk 0:02:57]} 3. e3 {[%clk 0:03:04.6]} 3... c5 {[%clk 0:02:57.9]} 4.
c3 {[%clk 0:03:05.7]} 4... Nc6 {[%clk 0:02:58.8]} 5. Nd2 {[%clk 0:03:07.1]} 5...
Bf5 {[%clk 0:02:59.4]} 6. Ngf3 {[%clk 0:03:08.3]} 6... e6 {[%clk 0:02:56.2]} 7.
Qb3 {[%clk 0:03:08.5]} 7... Qd7 {[%clk 0:02:56.6]} 8. Nh4 {[%clk 0:03:09.1]}
8... Be7 {[%clk 0:02:47.1]} 9. Nxf5 {[%clk 0:03:09.1]} 9... exf5 {[%clk
0:02:48.2]} 10. dxc5 {[%clk 0:03:10]} 10... Bxc5 {[%clk 0:02:47.8]} 11. Be2
{[%clk 0:03:08.3]} 11... O-O {[%clk 0:02:48.3]} 12. O-O {[%clk 0:03:08.9]} 12...
Bd6 {[%clk 0:02:40.5]} 13. Bxd6 {[%clk 0:02:46.6]} 13... Qxd6 {[%clk 0:02:42.4]}
14. Rad1 {[%clk 0:02:47.9]} 14... Qe6 {[%clk 0:02:37]} 15. Nf3 {[%clk
0:02:46.8]} 15... Rfd8 {[%clk 0:02:31.1]} 16. Nd4 {[%clk 0:02:47.4]} 16... Nxd4
{[%clk 0:01:49.2]} 17. Rxd4 {[%clk 0:02:49.3]} 17... Rd7 {[%clk 0:01:43.9]} 18.
Rfd1 {[%clk 0:02:48.8]} 18... Rad8 {[%clk 0:01:44.2]} 19. h3 {[%clk 0:02:45.7]}
19... Ne4 {[%clk 0:01:37.1]} 20. Bf3 {[%clk 0:02:38.3]} 20... g5 {[%clk
0:01:30.5]} 21. Qa4 {[%clk 0:02:28.1]} 21... Nf6 {[%clk 0:01:22]} 22. Qxa7
{[%clk 0:02:23.1]} 22... h5 {[%clk 0:01:21.2]} 23. g3 {[%clk 0:02:21.1]} 23...
g4 {[%clk 0:01:21.6]} 24. hxg4 {[%clk 0:02:21.8]} 24... hxg4 {[%clk 0:01:17]}
25. Bg2 {[%clk 0:02:22.9]} 25... Kg7 {[%clk 0:01:17.9]} 26. Qa4 {[%clk
0:02:19.7]} 26... Ne4 {[%clk 0:01:10.1]} 27. c4 {[%clk 0:02:16.4]} 27... Nc5
{[%clk 0:00:48.3]} 28. Qa3 {[%clk 0:02:17.3]} 28... b6 {[%clk 0:00:36.2]} 29.
cxd5 {[%clk 0:02:17]} 29... Qh6 {[%clk 0:00:36.1]} 30. Qc3 {[%clk 0:02:14.5]}
30... Kg6 {[%clk 0:00:32]} 31. b4 {[%clk 0:02:09.8]} 31... Na4 {[%clk
0:00:26.3]} 32. Qc2 {[%clk 0:02:11.2]} 32... b5 {[%clk 0:00:25.8]} 33. Rxg4+
{[%clk 0:02:12.1]} 33... Kf6 {[%clk 0:00:23.8]} 34. Rf4 {[%clk 0:02:07.2]} 34...
Qg5 {[%clk 0:00:23.4]} 35. g4 {[%clk 0:02:01.3]} 1-0

[Event "*** MasterClass Titled Tuesday Blitz"]
[Site "Chess.com"]
[Date "2017.11.07"]
[Round "1"]
[White "saraswathii"]
[Black "krzyzan94"]
[Result "0-1"]
[WhiteElo "2293"]
[BlackElo "2567"]
[TimeControl "180+2"]
[EndTime "14:09:43 PST"]
[Termination "krzyzan94 won by resignation"]

1. e4 {[%clk 0:02:57.8]} 1... c5 {[%clk 0:02:59.3]} 2. Nf3 {[%clk 0:02:57.6]}
2... e6 {[%clk 0:02:57.8]} 3. d3 {[%clk 0:02:58.1]} 3... g6 {[%clk 0:02:57.2]}
4. g3 {[%clk 0:02:58.5]} 4... Bg7 {[%clk 0:02:58.7]} 5. Bg2 {[%clk 0:02:58.4]}
5... Nc6 {[%clk 0:03:00.3]} 6. O-O {[%clk 0:02:56]} 6... h5 {[%clk 0:03:01]} 7.
h4 {[%clk 0:02:53.4]} 7... Nge7 {[%clk 0:03:01.4]} 8. c3 {[%clk 0:02:52.6]} 8...
d5 {[%clk 0:03:01.9]} 9. Qe2 {[%clk 0:02:53.5]} 9... b6 {[%clk 0:02:59.3]} 10.
exd5 {[%clk 0:02:53]} 10... Nxd5 {[%clk 0:02:59.2]} 11. Ng5 {[%clk 0:02:51.8]}
11... O-O {[%clk 0:02:58.2]} 12. Nd2 {[%clk 0:02:43.3]} 12... Ba6 {[%clk
0:02:57.4]} 13. Rd1 {[%clk 0:02:38.9]} 13... Qd7 {[%clk 0:02:51.9]} 14. Nc4
{[%clk 0:02:22.9]} 14... Rad8 {[%clk 0:02:50.4]} 15. Bd2 {[%clk 0:02:15.8]}
15... b5 {[%clk 0:02:44.9]} 16. Ne3 {[%clk 0:02:13]} 16... b4 {[%clk 0:02:43.9]}
17. Rac1 {[%clk 0:02:02.2]} 17... Nde7 {[%clk 0:02:21.7]} 18. cxb4 {[%clk
0:01:47.1]} 18... Nxb4 {[%clk 0:02:18]} 19. Rxc5 {[%clk 0:01:41.3]} 19... Nxd3
{[%clk 0:02:11.7]} 20. Ra5 {[%clk 0:01:37.4]} 20... Nxb2 {[%clk 0:01:58.5]} 21.
Rxa6 {[%clk 0:01:28.3]} 21... Nxd1 {[%clk 0:01:59.6]} 22. Qxd1 {[%clk
0:01:29.1]} 22... Qxd2 {[%clk 0:01:59.9]} 23. Qxd2 {[%clk 0:01:27.7]} 23... Rxd2
{[%clk 0:02:01.8]} 24. Rxa7 {[%clk 0:01:29]} 24... Nf5 {[%clk 0:01:57.4]} 25.
Ne4 {[%clk 0:01:03.2]} 25... Rb2 {[%clk 0:01:54.3]} 26. Nc4 {[%clk 0:01:02.2]}
26... Rb1+ {[%clk 0:01:54.1]} 27. Kh2 {[%clk 0:01:03.1]} 27... Nh6 {[%clk
0:01:44.7]} 28. f3 {[%clk 0:01:00.3]} 28... Nf5 {[%clk 0:01:43]} 29. a4 {[%clk
0:01:00.1]} 29... Rc8 {[%clk 0:01:40.3]} 30. Ncd2 {[%clk 0:00:50.1]} 30... Rb2
{[%clk 0:01:38.3]} 31. a5 {[%clk 0:00:50]} 31... Ne3 {[%clk 0:01:37.6]} 32. a6
{[%clk 0:00:34.8]} 32... Nxg2 {[%clk 0:01:37.7]} 33. Kxg2 {[%clk 0:00:35.1]}
33... f5 {[%clk 0:01:38.6]} 34. Rb7 {[%clk 0:00:29.7]} 34... fxe4 {[%clk
0:01:37.7]} 0-1

[Event "*** MasterClass Titled Tuesday Blitz"]
[Site "Chess.com"]
[Date "2017.11.07"]
[Round "1"]
[White "VladimirBelous"]
[Black "chessking2151"]
[Result "1-0"]
[WhiteElo "2677"]
[BlackElo "2401"]
[TimeControl "180+2"]
[EndTime "14:09:57 PST"]
[Termination "VladimirBelous won by resignation"]

1. c4 {[%clk 0:03:01.9]} 1... Nf6 {[%clk 0:03:00.1]} 2. Nf3 {[%clk 0:03:01.8]}
2... b6 {[%clk 0:02:58]} 3. g3 {[%clk 0:03:03]} 3... Bb7 {[%clk 0:02:58.7]} 4.
Bg2 {[%clk 0:03:04.5]} 4... e6 {[%clk 0:03:00.2]} 5. O-O {[%clk 0:03:05.9]} 5...
d5 {[%clk 0:03:00.5]} 6. d4 {[%clk 0:03:05.7]} 6... Be7 {[%clk 0:02:56]} 7. Nc3
{[%clk 0:03:03.3]} 7... O-O {[%clk 0:02:56.3]} 8. Bg5 {[%clk 0:02:55.7]} 8...
dxc4 {[%clk 0:02:41.8]} 9. Qc2 {[%clk 0:02:51.7]} 9... Nc6 {[%clk 0:02:11.4]}
10. Rad1 {[%clk 0:02:48.7]} 10... Nb4 {[%clk 0:02:06.2]} 11. Qc1 {[%clk
0:02:45.7]} 11... Nfd5 {[%clk 0:01:56.7]} 12. Bxe7 {[%clk 0:02:42.4]} 12... Qxe7
{[%clk 0:01:54]} 13. a3 {[%clk 0:02:44]} 13... Na6 {[%clk 0:01:45.3]} 14. Rfe1
{[%clk 0:02:40.8]} 14... c5 {[%clk 0:01:42.6]} 15. e4 {[%clk 0:02:12.6]} 15...
Nxc3 {[%clk 0:01:31]} 16. Qxc3 {[%clk 0:02:14.5]} 16... b5 {[%clk 0:01:20.3]}
17. d5 {[%clk 0:02:13.1]} 17... Rfd8 {[%clk 0:01:12.2]} 18. a4 {[%clk
0:02:07.5]} 18... b4 {[%clk 0:00:50.3]} 19. Qxc4 {[%clk 0:02:07.5]} 19... Nc7
{[%clk 0:00:51.1]} 20. d6 {[%clk 0:01:59.1]} 20... Rxd6 {[%clk 0:00:46.5]} 21.
Qxc5 {[%clk 0:02:00.5]} 21... Rd7 {[%clk 0:00:40.2]} 22. Qxe7 {[%clk 0:01:57.2]}
22... Rxe7 {[%clk 0:00:42.1]} 23. Ne5 {[%clk 0:01:57.6]} 23... f6 {[%clk
0:00:35.2]} 24. Nd3 {[%clk 0:01:58.5]} 24... a5 {[%clk 0:00:35]} 25. Nc5 {[%clk
0:01:59.8]} 25... Bc6 {[%clk 0:00:35.6]} 26. e5 {[%clk 0:02:00.7]} 26... Bxg2
{[%clk 0:00:34.2]} 27. exf6 {[%clk 0:02:01.8]} 27... gxf6 {[%clk 0:00:34]} 28.
Kxg2 {[%clk 0:02:03.3]} 28... Kf7 {[%clk 0:00:29.6]} 29. Rd6 {[%clk 0:02:02.1]}
29... e5 {[%clk 0:00:22.3]} 30. Rc1 {[%clk 0:01:59.7]} 30... Ne8 {[%clk
0:00:15.4]} 31. Rc6 {[%clk 0:01:55.6]} 31... Raa7 {[%clk 0:00:13.3]} 32. Ne4
{[%clk 0:01:44.5]} 32... Rec7 {[%clk 0:00:06.5]} 33. Nd6+ {[%clk 0:01:37.7]}
33... Ke6 {[%clk 0:00:06.7]} 34. Nb5+ {[%clk 0:01:32.6]} 34... Rxc6 {[%clk
0:00:07.1]} 35. Rxc6+ {[%clk 0:01:33.1]} 1-0

[Event "*** MasterClass Titled Tuesday Blitz"]
[Site "Chess.com"]
[Date "2017.11.07"]
[Round "1"]
[White "gpeloui"]
[Black "ZapataCharlesS"]
[Result "0-1"]
[WhiteElo "2239"]
[BlackElo "2522"]
[TimeControl "180+2"]
[EndTime "14:09:59 PST"]
[Termination "ZapataCharlesS won by checkmate"]

1. e4 {[%clk 0:03:01.9]} 1... c6 {[%clk 0:02:12.9]} 2. d4 {[%clk 0:03:01]} 2...
d5 {[%clk 0:02:12.8]} 3. e5 {[%clk 0:03:00.6]} 3... Na6 {[%clk 0:02:12.1]} 4.
Nf3 {[%clk 0:03:01.3]} 4... g6 {[%clk 0:02:11.9]} 5. Be2 {[%clk 0:03:01]} 5...
h5 {[%clk 0:02:10.4]} 6. O-O {[%clk 0:03:02]} 6... Nc7 {[%clk 0:02:06.5]} 7. c4
{[%clk 0:03:02.5]} 7... Bh6 {[%clk 0:02:07.4]} 8. Nc3 {[%clk 0:03:02.9]} 8...
Bxc1 {[%clk 0:02:04.4]} 9. Rxc1 {[%clk 0:03:04.8]} 9... Nh6 {[%clk 0:02:05.7]}
10. h3 {[%clk 0:03:06]} 10... Be6 {[%clk 0:02:02.6]} 11. c5 {[%clk 0:03:04.8]}
11... Nf5 {[%clk 0:01:59.3]} 12. Ng5 {[%clk 0:03:04.5]} 12... f6 {[%clk
0:01:57.6]} 13. Nf3 {[%clk 0:02:54.9]} 13... Kf7 {[%clk 0:01:53.5]} 14. Re1
{[%clk 0:02:53.3]} 14... g5 {[%clk 0:01:50]} 15. exf6 {[%clk 0:02:25.7]} 15...
exf6 {[%clk 0:01:49.3]} 16. Nxg5+ {[%clk 0:02:27.2]} 16... fxg5 {[%clk
0:01:46.3]} 17. Bxh5+ {[%clk 0:02:29.1]} 17... Kg7 {[%clk 0:01:36]} 18. Bg4
{[%clk 0:02:27.9]} 18... Qf6 {[%clk 0:01:36.6]} 19. Ne2 {[%clk 0:02:06.6]} 19...
Rae8 {[%clk 0:01:32.3]} 20. Rc3 {[%clk 0:02:07.6]} 20... Nh4 {[%clk 0:01:20.7]}
21. Bxe6 {[%clk 0:02:02.5]} 21... Rxe6 {[%clk 0:01:21]} 22. Ng3 {[%clk 0:02:04]}
22... Rxe1+ {[%clk 0:01:18.6]} 23. Qxe1 {[%clk 0:02:05]} 23... Kf7 {[%clk
0:01:10.7]} 24. Rb3 {[%clk 0:02:02.5]} 24... Re8 {[%clk 0:01:09.2]} 25. Qd1
{[%clk 0:01:58]} 25... Ne6 {[%clk 0:01:04.2]} 26. Rxb7+ {[%clk 0:01:58]} 26...
Kf8 {[%clk 0:01:04.8]} 27. Nh5 {[%clk 0:00:58.2]} 27... Qxd4 {[%clk 0:01:00.9]}
28. Qc1 {[%clk 0:00:57.9]} 28... Nf4 {[%clk 0:00:56.3]} 29. Qc2 {[%clk
0:00:49.3]} 29... Nxh5 {[%clk 0:00:46.7]} 30. Qh7 {[%clk 0:00:49.9]} 30... Re1+
{[%clk 0:00:43.1]} 31. Kh2 {[%clk 0:00:49.5]} 31... Qf4+ {[%clk 0:00:44.5]} 32.
g3 {[%clk 0:00:50.7]} 32... Qxf2# {[%clk 0:00:45.9]} 0-1